bitfinex/quotes_ETHUSD_20241105
["timestamp","ask_amount","ask_price","bid_price","bid_amount"]
[1730781915233,0.0604183,2432.0,2431.9,4.44676993]
[1730781916270,0.0604183,2432.0,2431.9,4.93434448]
[1730781916577,0.0604183,2432.0,2431.9,8.22633527]
[1730781916727,0.0604183,2432.0,2431.9,8.69337453]
[1730781918529,0.0604183,2432.0,2431.9,9.25337453]
[1730781920430,0.0604183,2432.0,2431.9,8.70337453]
[1730781920634,0.0604183,2432.0,2431.9,10.41278696]
[1730781924635,0.0604183,2432.0,2431.9,11.54517904]
[1730781924837,0.0604183,2432.0,2431.9,11.55517904]
[1730781925037,0.0237395,2432.6,2432.5,4.11099]
[1730781925238,0.0237395,2432.6,2432.5,12.69899036]
[1730781925571,0.0237395,2432.6,2432.5,12.70899036]
[1730781925777,0.0237395,2432.6,2432.5,13.28122912]
[1730781926088,4.10866,2433.9,2432.5,13.28122912]
[1730781926089,5.93680897,2434.3,2433.1,4.10998]
[1730781926382,5.93680897,2434.3,2433.5,0.56]
[1730781926383,8.39532921,2434.3,2433.5,0.56]
[1730781926533,0.92091475,2434.2,2433.7,1.70941243]
[1730781926736,0.8182,2433.9,2433.6,0.04012218]
[1730781927043,4.92683,2433.9,2433.3,8.21906]
[1730781927252,4.28735921,2434.3,2433.8,1.70941243]
[1730781927253,5.10555921,2434.3,2433.8,1.70941243]
[1730781927437,4.10855,2434.0,2433.5,3.95581421]
[1730781927636,4.10855,2434.0,2433.6,0.03807455]
[1730781927868,4.930229,2434.0,2433.6,0.03807455]
[1730781929156,0.821679,2434.0,2433.6,4.14719455]
[1730781929361,4.10816,2434.2,2433.6,0.03807455]
[1730781929533,4.10838,2434.1,2433.6,0.03807455]
[1730781929765,4.10829,2434.1,2433.6,0.03807455]
[1730781930183,4.10816,2434.2,2433.6,4.2292846]
[1730781930411,4.10816,2434.2,2433.7,0.29001773]
[1730781930612,4.10816,2434.2,2433.6,4.2292846]
[1730781930794,4.10831,2434.1,2433.7,0.28992779]
[1730781930993,4.10831,2434.1,2433.7,0.03807455]
[1730781931214,4.92627,2434.3,2433.7,0.03807455]
[1730781931522,4.10819,2434.2,2433.8,0.32795551]
[1730781931803,4.10829,2434.1,2433.8,0.03807455]
[1730781932168,4.10821,2434.2,2433.6,4.94920006]
[1730781932368,4.92627,2434.3,2433.9,0.03765863]
[1730781932594,0.0604183,2434.4,2433.9,4.1086]
[1730781932906,0.0604183,2434.4,2434.0,0.32745204]
[1730781932907,4.1682283,2434.4,2434.0,0.32745204]
[1730781933106,4.1682283,2434.4,2434.0,0.03765863]
[1730781933265,4.1682283,2434.4,2434.1,0.28977578]
[1730781933266,0.0604183,2434.4,2434.1,0.28977578]
[1730781933470,0.0604183,2434.4,2433.9,4.10854]
[1730781933670,0.0604183,2434.4,2434.0,4.89958029]
[1730781933902,0.0604183,2434.4,2434.1,0.28979518]
[1730781934102,0.0604183,2434.4,2434.2,0.28979518]
[1730781934280,0.0604183,2434.4,2434.2,0.03741954]
[1730781934475,0.0604183,2434.4,2434.0,0.7507]
[1730781934711,0.0604183,2434.4,2434.1,0.03604678]
[1730781935008,4.1682283,2434.4,2434.2,0.28976164]
[1730781935210,0.0604183,2434.4,2434.3,0.2897482]
[1730781935383,4.10862,2434.0,2433.5,0.7743]
[1730781935576,8.21717,2434.0,2433.7,1.3333449]
[1730781935772,4.10855,2434.0,2433.8,0.75362744]
[1730781935977,4.10855,2434.0,2433.9,0.28985266]
[1730781936314,4.10855,2434.0,2433.9,0.32589944]
[1730781936518,4.10855,2434.0,2433.9,0.28985266]
[1730781936984,5.753734,2434.0,2433.9,0.28985266]
[1730781937183,4.10896,2433.8,2433.3,0.58004554]
[1730781937510,4.1088,2433.8,2433.4,1.33436102]
[1730781937669,4.1088,2433.8,2433.5,0.75431548]
[1730781937871,4.1088,2433.8,2433.6,0.75431548]
[1730781938115,4.1088,2433.8,2433.7,0.29011728]
[1730781938321,4.1088,2433.8,2433.7,0.29024131]
[1730781938530,3.96634213,2434.4,2433.7,0.777]
[1730781938531,0.0604183,2434.4,2433.7,0.777]
[1730781938674,0.0604183,2434.4,2434.1,3.95581421]
[1730781939008,0.0604183,2434.4,2434.2,1.53163409]
[1730781939209,0.0604183,2434.4,2434.3,0.75463409]
[1730781939575,4.1681983,2434.4,2434.3,0.29029425]
[1730781940084,0.0604183,2434.4,2434.3,0.29029425]
[1730781940675,4.1681983,2434.4,2434.3,0.75458635]
[1730781940976,4.1681983,2434.4,2434.3,0.29029425]
[1730781940977,0.0604183,2434.4,2434.3,0.29029425]
[1730781941178,0.0604183,2434.4,2434.3,0.75473209]
[1730781941630,4.1681983,2434.4,2434.3,0.75473209]
[1730781941791,4.1681983,2434.4,2434.3,0.29029425]
[1730781941991,4.1681983,2434.4,2434.3,0.75474725]
[1730781942192,4.1681983,2434.4,2434.3,0.29029425]
[1730781942396,4.1681983,2434.4,2434.3,0.75492471]
[1730781943126,4.99578113,2434.4,2434.3,0.75492471]
[1730781943422,4.94578113,2434.4,2434.3,0.75492471]
[1730781943727,4.1181983,2434.4,2434.3,0.75492471]
[1730781944024,0.0104183,2434.4,2434.3,0.75492471]
[1730781944229,0.0104183,2434.4,2434.3,1.3356222]
[1730781945606,0.0104183,2434.4,2434.0,4.10832]
[1730781946297,0.0104183,2434.4,2434.1,1.33659208]
[1730781946716,0.0104183,2434.4,2434.1,5.44484208]
[1730781946902,0.0104183,2434.4,2434.2,1.33659208]
[1730781947507,0.0104183,2434.4,2434.2,1.04603662]
[1730781948030,0.0104183,2434.4,2434.2,1.1281925]
[1730781948264,0.0104183,2434.4,2434.0,4.10832]
[1730781948392,0.0104183,2434.4,2434.3,0.29075456]
[1730781948595,0.0104183,2434.4,2434.3,1.33750798]
[1730781950935,4.1181983,2434.4,2434.3,1.33750798]
[1730781951145,0.0104183,2434.4,2434.3,1.33750798]
[1730781951349,0.0104183,2434.4,2434.0,4.10846]
[1730781951518,0.0104183,2434.4,2434.2,0.48538249]
[1730781951707,0.0104183,2434.4,2434.3,1.33958603]
[1730781952111,0.0104183,2434.4,2434.0,4.10846]
[1730781952112,4.1077,2434.5,2434.0,4.10846]
[1730781952303,4.1077,2434.5,2434.3,0.48533595]
[1730781952507,4.1077,2434.5,2434.4,1.33945756]
[1730781952721,8.24100079,2434.7,2434.4,1.33945756]
[1730781953007,4.10746,2434.6,2434.5,1.33945756]
[1730781953754,0.02616079,2434.7,2434.5,6.07617177]
[1730781953901,0.02616079,2434.7,2434.6,6.01437885]
[1730781954105,4.1066,2435.1,2434.6,6.01437885]
[1730781954106,4.1066,2435.1,2434.6,1.90692885]
[1730781954341,4.10648,2435.2,2434.8,0.48626933]
[1730781954641,4.10648,2435.2,2434.7,4.10714]
[1730781954843,4.10648,2435.2,2434.8,1.82824372]
[1730781955150,2.01192802,2435.4,2434.9,1.82824372]
[1730781955474,4.10653,2435.2,2435.0,1.34199013]
[1730781955603,4.10653,2435.2,2435.1,1.34199013]
[1730781955806,4.10627,2435.3,2435.1,1.34199013]
[1730781956074,4.10627,2435.3,2435.2,1.34199013]
[1730781958457,2.01192802,2435.4,2435.2,1.34204981]
[1730781958754,2.01192802,2435.4,2435.3,1.34204981]
[1730781960239,6.11802802,2435.4,2435.3,1.34204981]
[1730781960438,7.93676665,2435.4,2435.3,1.34204981]
[1730781960639,7.93676665,2435.4,2435.3,0.75865697]
[1730781960840,6.90832802,2435.4,2435.3,0.75865697]
[1730781961544,4.10659,2435.2,2434.6,4.89052]
[1730781961854,4.10659,2435.2,2434.8,0.48643246]
[1730781962026,4.10659,2435.2,2434.9,1.82874983]
[1730781962229,4.1066,2435.1,2435.0,1.34231737]
[1730781962813,4.10659,2435.2,2435.0,1.34231737]
[1730781963168,6.90844802,2435.4,2435.1,1.34231737]
[1730781963317,6.90841802,2435.4,2435.2,0.75869074]
[1730781963521,6.11811802,2435.4,2435.3,0.75869074]
[1730781964257,6.11811802,2435.4,2434.8,0.7703]
[1730781964455,4.10648,2435.2,2434.8,1.25629893]
[1730781964624,4.10648,2435.2,2434.9,1.34128435]
[1730781964824,4.1066,2435.1,2435.0,1.34128435]
[1730781965138,4.1066,2435.1,2435.0,0.75810685]
[1730781965759,4.1066,2435.1,2435.0,0.29157548]
[1730781965962,4.1066,2435.1,2435.0,0.75836893]
[1730781966127,4.1066,2435.1,2435.0,0.29157548]
[1730781967950,4.1066,2435.1,2434.5,4.87783]
[1730781968152,4.10686,2435.0,2434.6,1.34274493]
[1730781968343,4.10686,2435.0,2434.7,1.34274493]
[1730781968563,4.10686,2435.0,2434.8,1.34274493]
[1730781968849,4.10686,2435.0,2434.9,0.7589324]
[1730781969870,5.006286,2435.0,2434.9,0.7589324]
[1730781970071,5.818086,2435.0,2434.9,0.29189299]
[1730781971119,4.10686,2435.0,2434.9,0.29189299]
[1730781971559,4.1066,2435.1,2434.9,0.75917782]
[1730781971763,4.1066,2435.1,2434.7,4.91053]
[1730781971973,4.1066,2435.1,2434.8,0.75932067]
[1730781972144,4.1066,2435.1,2434.7,0.8033]
[1730781972345,4.1066,2435.1,2434.8,0.75931234]
[1730781972550,4.1066,2435.1,2434.9,0.75931234]
[1730781972845,4.91819,2435.3,2435.0,0.75931234]
[1730781973051,4.91819,2435.3,2435.1,0.29205651]
[1730781973052,4.10643,2435.2,2435.1,0.29205651]
[1730781973642,4.10634,2435.3,2435.1,0.29205651]
[1730781973980,4.10634,2435.3,2434.8,4.107]
[1730781973981,4.10634,2435.3,2435.2,0.29205651]
[1730781975581,4.10634,2435.3,2435.2,0.29225398]
[1730781976081,2.01192802,2435.4,2435.2,1.05995398]
[1730781976237,2.01192802,2435.4,2435.3,0.7597763]
[1730781976833,2.01192802,2435.4,2435.3,4.8660463]
[1730781978181,2.01192802,2435.4,2435.3,6.30661822]
[1730781978386,2.01192802,2435.4,2435.3,9.78450138]
[1730781978678,2.01192802,2435.4,2435.3,10.26163018]
[1730781978900,2.01192802,2435.4,2435.3,6.21450138]
[1730781979044,2.01192802,2435.4,2435.3,4.87107]
[1730781979243,2.01192802,2435.4,2435.3,6.21354607]
[1730781979557,2.01192802,2435.4,2435.3,5.62985044]
[1730781979762,2.01192802,2435.4,2435.3,1.52358044]
[1730781979944,2.01192802,2435.4,2435.3,6.21353074]
[1730781980452,2.01192802,2435.4,2435.3,6.21330887]
[1730781981080,2.01192802,2435.4,2435.3,2.10703887]
[1730781981244,2.01192802,2435.4,2435.3,1.52358044]
[1730781981967,2.01192802,2435.4,2435.3,0.29183455]
[1730781981968,6.11802802,2435.4,2435.3,0.29183455]
[1730781982171,6.11802802,2435.4,2435.1,0.7982]
[1730781982488,2.01192802,2435.4,2435.2,0.2916459]
[1730781982654,2.01192802,2435.4,2435.1,0.7982]
[1730781982980,2.01192802,2435.4,2435.2,0.29159616]
[1730781983283,2.01192802,2435.4,2435.1,0.7982]
[1730781983486,6.11810802,2435.4,2435.2,0.29161419]
[1730781983691,2.01192802,2435.4,2435.1,0.7982]
[1730781983990,2.01192802,2435.4,2435.2,0.29162541]
[1730781984284,6.11804802,2435.4,2435.1,0.7982]
[1730781984847,2.01192802,2435.4,2435.1,0.7982]
[1730781985345,6.11812802,2435.4,2435.1,0.7982]
[1730781987702,4.10643,2435.2,2435.1,0.7982]
[1730781987866,4.10636,2435.3,2435.1,0.7982]
[1730781988067,4.10643,2435.2,2435.1,0.7982]
[1730781988506,4.10636,2435.3,2435.1,0.7982]
[1730781988877,4.10635,2435.3,2434.8,0.8126]
[1730781989106,4.10635,2435.3,2434.6,0.58365559]
[1730781989107,4.10698,2434.9,2434.6,0.58365559]
[1730781989283,0.8128,2435.2,2434.3,4.10787]
[1730781989284,4.92002,2434.8,2434.4,0.08214466]
[1730781989483,4.10687,2435.0,2434.5,5.21216435]
[1730781989687,4.1066,2435.1,2434.6,0.29196435]
[1730781989880,4.1068,2435.0,2434.5,4.9202]
[1730781990106,4.1068,2435.0,2434.6,0.29191196]
[1730781990407,4.1068,2435.0,2434.5,4.92012]
[1730781990572,8.21329,2435.1,2434.6,0.29191185]
[1730781990770,4.1069,2435.0,2434.5,4.92012]
[1730781990984,4.1066,2435.1,2434.6,0.29188333]
[1730781991200,4.1066,2435.1,2434.7,0.2918648]
[1730781991370,4.91935,2435.2,2434.5,4.92017]
[1730781991686,4.10671,2435.1,2434.6,4.39929683]
[1730781991882,4.10671,2435.1,2434.7,0.29185683]
[1730781992074,4.10671,2435.1,2434.6,4.10744]
[1730781992277,4.10671,2435.1,2434.7,0.29184746]
[1730781992588,4.10671,2435.1,2434.6,4.10744]
[1730781992913,4.10671,2435.1,2434.7,0.29186946]
[1730781993074,4.10671,2435.1,2434.6,4.10744]
[1730781993409,4.10671,2435.1,2434.7,0.29187437]
[1730781993617,4.10671,2435.1,2434.6,4.10744]
[1730781993845,4.10671,2435.1,2434.7,0.29187822]
[1730781994054,4.10671,2435.1,2434.6,4.10744]
[1730781994251,4.10671,2435.1,2434.7,0.29188553]
[1730781994426,8.21348,2435.1,2434.6,4.10744]
[1730781994628,4.10688,2435.0,2434.7,0.29187566]
[1730781994825,4.10688,2435.0,2434.5,0.8126]
[1730781995041,4.10688,2435.0,2434.6,0.29192329]
[1730781995222,4.10688,2435.0,2434.5,0.8126]
[1730781995427,4.10688,2435.0,2434.6,0.29195431]
[1730781995735,6.90527802,2435.4,2434.9,4.10686]
[1730781995940,6.11817802,2435.4,2435.0,0.08212626]
[1730781996336,2.01192802,2435.4,2435.0,0.08212626]
[1730781996538,2.01192802,2435.4,2434.9,4.10684]
[1730781996722,4.1063,2435.3,2434.8,4.9004]
[1730781996932,4.1063,2435.3,2434.9,0.29187614]
[1730781997137,4.1063,2435.3,2434.8,4.9004]
[1730781997320,4.1063,2435.3,2434.9,0.29190705]
[1730781997523,4.1063,2435.3,2434.8,4.9004]
[1730781997818,4.1063,2435.3,2434.9,0.29192853]
[1730781998155,4.10651,2435.2,2434.8,0.7934]
[1730781999567,2.01192802,2435.4,2435.3,4.10627]
[1730781999777,2.01192802,2435.4,2435.3,4.39821715]
[1730782001171,2.01192802,2435.4,2435.3,5.17591715]
[1730782002275,2.01192802,2435.4,2435.3,5.64304336]
[1730782003571,2.01192802,2435.4,2435.3,9.19304336]
[1730782003873,2.01192802,2435.4,2435.3,8.43397]
[1730782004080,2.01192802,2435.4,2435.3,9.77650034]
[1730782004252,2.01192802,2435.4,2435.3,9.1927855]
[1730782004759,2.01192802,2435.4,2435.3,8.6427855]
[1730782006239,2.01192802,2435.4,2435.3,7.8650855]
[1730782006968,2.01192802,2435.4,2435.3,7.86501616]
[1730782007171,2.01192802,2435.4,2435.3,7.39811803]
[1730782007976,2.01192802,2435.4,2435.3,0.29184803]
[1730782010143,2.01192802,2435.4,2435.3,0.291698]
[1730782012687,0.7855,2435.3,2435.0,4.10668]
[1730782012981,0.7855,2435.3,2435.1,0.29174274]
[1730782013201,0.7855,2435.3,2435.2,0.29174274]
[1730782013891,0.7855,2435.3,2434.8,4.10708]
[1730782014182,4.89186,2435.3,2434.9,0.291828]
[1730782014392,4.89186,2435.3,2434.8,4.10708]
[1730782014550,4.89186,2435.3,2434.9,0.29184329]
[1730782014753,4.89186,2435.3,2435.0,0.29183428]
[1730782014950,4.89186,2435.3,2434.9,4.10691]
[1730782015149,4.89186,2435.3,2435.0,0.29185291]
[1730782015453,4.89186,2435.3,2434.6,8.06311421]
[1730782015663,4.10645,2435.2,2434.7,0.7589029]
[1730782015880,4.10664,2435.1,2434.8,0.29188164]
[1730782016185,4.10664,2435.1,2434.6,8.06311421]
[1730782016186,0.8321,2435.0,2434.6,8.06311421]
[1730782016489,4.93896,2435.0,2434.7,0.29198386]
[1730782016660,4.10702,2434.9,2434.4,4.10765]
[1730782016867,4.10702,2434.9,2434.5,0.29199265]
[1730782017048,4.10702,2434.9,2434.2,8.21603]
[1730782017049,4.10735,2434.7,2434.2,8.21603]
[1730782017252,4.10735,2434.7,2434.3,0.29200287]
[1730782017459,4.10735,2434.7,2434.2,4.10801]
[1730782017460,4.10735,2434.7,2434.4,0.29200287]
[1730782017652,0.8222,2434.6,2434.2,4.108]
[1730782017881,0.8222,2434.6,2434.3,0.29200487]
[1730782018070,0.8222,2434.6,2434.4,0.29200487]
[1730782018386,0.8222,2434.6,2434.2,4.108]
[1730782018586,4.92967,2434.6,2434.3,0.29195478]
[1730782018806,4.92967,2434.6,2434.2,0.46713059]
[1730782018965,4.92967,2434.6,2434.3,0.29194667]
[1730782019152,0.8222,2434.6,2434.2,4.10801]
[1730782019353,0.8222,2434.6,2434.3,0.2918949]
[1730782019597,0.8222,2434.6,2434.0,3.95581421]
[1730782019756,0.8222,2434.6,2434.3,4.10787]
[1730782020453,0.8222,2434.6,2434.4,0.29187444]
[1730782020688,0.8222,2434.6,2434.3,4.10787]
[1730782020990,4.10714,2434.8,2434.4,0.29188872]
[1730782020991,4.86364,2434.8,2434.4,0.29188872]
[1730782021164,4.10656,2435.2,2434.5,0.08214532]
[1730782021364,4.10677,2435.0,2434.6,0.29183045]
[1730782021565,0.7565,2434.7,2434.2,4.86142]
[1730782021762,0.7565,2434.7,2434.3,0.29190057]
[1730782021969,4.86385,2434.7,2434.4,0.29190057]
[1730782022266,4.86385,2434.7,2434.2,4.10802]
[1730782022449,0.7565,2434.7,2434.3,4.3997074]
[1730782022655,0.7565,2434.7,2434.4,0.37401274]
[1730782022850,0.7565,2434.7,2434.4,0.08214534]
[1730782023165,4.86387,2434.7,2434.0,11.81762421]
[1730782023498,4.10752,2434.6,2434.1,0.75880037]
[1730782023809,4.86387,2434.7,2434.2,4.39988221]
[1730782024012,4.86387,2434.7,2434.3,0.29184221]
[1730782024306,4.86387,2434.7,2434.2,8.21608]
[1730782024514,4.86387,2434.7,2434.3,0.29178257]
[1730782024807,4.86387,2434.7,2434.2,4.10804]
[1730782024808,8.97132,2434.7,2434.2,4.10804]
[1730782024966,8.97132,2434.7,2434.3,0.29177663]
[1730782025168,4.10746,2434.6,2434.0,11.81756421]
[1730782025391,4.10746,2434.6,2433.6,0.49652916]
[1730782025392,0.7778,2434.6,2434.1,0.29170973]
[1730782025710,0.7778,2434.6,2434.2,0.08215521]
[1730782025711,4.88534,2434.6,2434.2,0.08215521]
[1730782026007,4.88526,2434.6,2434.2,4.1081]
[1730782026167,0.7778,2434.6,2434.2,4.1081]
[1730782026367,0.7778,2434.6,2434.1,4.10818]
[1730782026603,4.88525,2434.6,2434.0,3.95581421]
[1730782026772,4.88525,2434.6,2434.1,4.39998161]
[1730782027105,4.88525,2434.6,2434.1,4.10829]
[1730782027271,4.88525,2434.6,2434.1,8.21658]
[1730782027691,0.7778,2434.6,2434.2,4.10807]
[1730782028528,0.7778,2434.6,2434.2,4.00807]
[1730782029034,4.88526,2434.6,2434.0,3.95581421]
[1730782029321,4.1077,2434.5,2434.1,0.291585]
[1730782029521,8.99284,2434.6,2434.1,4.10821]
[1730782029726,4.88526,2434.6,2434.1,4.10821]
[1730782029892,4.88526,2434.6,2434.2,0.37370132]
[1730782029893,0.7778,2434.6,2434.2,0.37370132]
[1730782030091,0.7778,2434.6,2434.3,4.10795]
[1730782030291,0.7778,2434.6,2434.4,4.10777]
[1730782031341,4.10682,2435.0,2434.4,4.10777]
[1730782031342,4.10713,2434.8,2434.4,4.10777]
[1730782031630,0.8266,2435.0,2434.7,4.10726]
[1730782032339,0.8266,2435.0,2434.5,8.21494]
[1730782032633,4.93339,2435.0,2434.5,8.21498]
[1730782033302,0.8266,2435.0,2434.6,4.10742]
[1730782033752,0.8105,2434.8,2433.9,4.88673]
[1730782033899,4.10736,2434.7,2434.2,4.10812]
[1730782034100,4.10736,2434.7,2434.2,4.19027396]
[1730782034316,4.10749,2434.6,2434.2,4.19027396]
[1730782034531,4.10749,2434.6,2434.2,0.08215396]
[1730782035393,4.10749,2434.6,2434.2,4.19026396]
[1730782035618,4.10735,2434.7,2434.2,4.19015396]
[1730782035846,4.91764,2434.8,2434.3,0.29163814]
[1730782036128,4.91764,2434.8,2434.3,4.10785]
[1730782037636,9.02492,2434.8,2434.3,4.10785]
[1730782038232,9.02492,2434.8,2434.4,0.29196283]
[1730782038542,4.10728,2434.7,2434.2,8.21602]
[1730782038878,0.8182,2434.6,2434.3,0.2919365]
[1730782039132,0.8182,2434.6,2434.2,4.10802]
[1730782039428,0.8182,2434.6,2434.3,4.39973149]
[1730782039638,0.8182,2434.6,2434.4,4.39956149]
[1730782039817,0.8182,2434.6,2434.5,0.29180149]
[1730782039994,0.8182,2434.6,2434.4,0.08214693]
[1730782040196,0.8182,2434.6,2434.3,4.10793]
[1730782040394,0.8182,2434.6,2434.4,0.29172607]
[1730782040639,0.8182,2434.6,2434.3,4.10793]
[1730782040811,0.8182,2434.6,2434.4,0.29171938]
[1730782041019,0.7767,2435.0,2434.6,4.10736]
[1730782041307,4.10695,2434.9,2434.7,0.29171062]
[1730782041499,0.7767,2435.0,2434.6,4.10733]
[1730782041702,0.7767,2435.0,2434.7,4.48115773]
[1730782041909,0.7767,2435.0,2434.7,4.18938698]
[1730782042226,0.7767,2435.0,2434.8,0.29175376]
[1730782042429,4.88349,2435.0,2434.6,4.10733]
[1730782042663,4.88349,2435.0,2434.7,0.29190857]
[1730782042872,4.10711,2434.8,2434.3,0.7826]
[1730782043071,4.10703,2434.9,2434.4,4.86674993]
[1730782043226,4.10703,2434.9,2434.5,0.75905993]
[1730782043432,4.10711,2434.8,2434.6,0.75905993]
[1730782043626,4.10711,2434.8,2434.7,0.29194202]
[1730782044373,4.92351,2434.8,2434.7,0.29194202]
[1730782045175,4.92351,2434.8,2434.7,0.75933023]
[1730782045176,0.8164,2434.8,2434.7,0.75933023]
[1730782045375,4.87669,2435.1,2434.7,0.75933023]
[1730782045542,4.87669,2435.1,2434.6,4.10737]
[1730782045543,0.898318,2435.0,2434.8,0.75933023]
[1730782045743,4.87669,2435.1,2434.9,0.29194202]
[1730782045948,4.87669,2435.1,2434.6,4.10737]
[1730782046151,4.87669,2435.1,2434.7,0.7593693]
[1730782046408,4.10677,2435.0,2434.8,0.7593693]
[1730782046679,4.10677,2435.0,2434.5,4.88501]
[1730782046680,4.10677,2435.0,2434.9,0.29206101]
[1730782047577,4.10677,2435.0,2434.9,0.29207971]
[1730782047578,5.005096,2435.0,2434.9,0.29207971]
[1730782047737,5.777996,2435.0,2434.5,4.10753]
[1730782048073,4.87967,2435.0,2434.6,5.45106083]
[1730782048280,4.87967,2435.0,2434.7,0.75942742]
[1730782048578,4.87967,2435.0,2434.8,0.75942742]
[1730782048783,4.87967,2435.0,2434.9,0.29208336]
[1730782049069,5.778298,2435.0,2434.9,0.29208336]
[1730782049664,5.778298,2435.0,2434.3,4.10784]
[1730782049665,4.10715,2434.8,2434.3,4.10784]
[1730782049874,4.10715,2434.8,2434.4,1.3437825]
[1730782050042,4.10715,2434.8,2434.5,0.7595188]
[1730782050252,4.10715,2434.8,2434.6,0.7595188]
[1730782050452,4.10715,2434.8,2434.7,0.29211851]
[1730782051257,4.10715,2434.8,2434.7,0.75950258]
[1730782051589,4.87967,2435.0,2434.7,0.75950258]
[1730782051790,0.7729,2435.0,2434.8,0.75947457]
[1730782051992,0.7729,2435.0,2434.9,0.29211851]
[1730782052748,4.87967,2435.0,2434.9,0.29211851]
[1730782053179,5.778309,2435.0,2434.9,0.29211851]
[1730782053383,5.778309,2435.0,2434.9,0.29213023]
[1730782054670,4.10699,2434.9,2434.4,4.10763]
[1730782054976,4.10699,2434.9,2434.5,0.75958864]
[1730782055290,4.10699,2434.9,2434.6,0.75958864]
[1730782055590,4.10699,2434.9,2434.7,0.75924842]
[1730782055795,4.10699,2434.9,2434.8,0.29214537]
[1730782058256,5.0955199,2434.9,2434.8,0.19214537]
[1730782058560,5.0955199,2434.9,2434.3,4.10788]
[1730782058561,4.10712,2434.8,2434.3,4.10788]
[1730782058797,8.21435,2434.8,2434.4,1.0510723]
[1730782059086,4.10712,2434.8,2434.5,1.0510723]
[1730782059387,0.9885299,2434.9,2434.6,0.4671373]
[1730782059388,5.0954899,2434.9,2434.6,0.4671373]
[1730782059576,4.10696,2434.9,2434.7,0.4671373]
[1730782059776,4.10696,2434.9,2434.3,4.10793]
[1730782059975,4.10711,2434.8,2434.4,1.05134815]
[1730782060202,4.10711,2434.8,2434.5,1.05134815]
[1730782060356,4.10712,2434.8,2434.6,0.4672599]
[1730782060557,0.7908,2434.7,2434.3,4.10788]
[1730782060783,4.89808,2434.7,2434.4,1.05140055]
[1730782060981,0.7908,2434.7,2434.5,1.05140055]
[1730782061181,0.7908,2434.7,2434.3,4.10788]
[1730782061182,0.7908,2434.7,2434.6,0.46728319]
[1730782061987,0.7908,2434.7,2434.6,0.46728983]
[1730782063508,4.89808,2434.7,2434.6,0.46728983]
[1730782063801,0.7908,2434.7,2434.6,0.46728983]
[1730782064289,0.7908,2434.7,2434.6,0.46725531]
[1730782064495,4.88906,2434.9,2434.6,0.46725531]
[1730782064655,5.78864,2434.9,2434.7,0.46725531]
[1730782064855,5.78864,2434.9,2434.4,4.10777]
[1730782065061,5.78864,2434.9,2434.5,1.05125894]
[1730782065292,5.78864,2434.9,2434.6,0.46722025]
[1730782065494,5.78864,2434.9,2434.7,0.46724742]
[1730782065495,4.10727,2434.8,2434.7,0.46724742]
[1730782065795,4.10727,2434.8,2434.3,4.10793]
[1730782065796,4.10731,2434.7,2434.3,4.10793]
[1730782065965,4.10731,2434.7,2434.4,1.05139503]
[1730782066161,4.10727,2434.8,2434.5,0.46728073]
[1730782066380,4.10727,2434.8,2434.6,0.46728073]
[1730782066381,8.21453,2434.8,2434.6,0.46728073]
[1730782066557,4.10726,2434.8,2434.3,4.10783]
[1730782066757,4.10724,2434.8,2434.4,1.05139835]
[1730782067105,4.10724,2434.8,2434.3,4.10783]
[1730782067106,4.10724,2434.8,2434.5,0.46728221]
[1730782067262,4.10724,2434.8,2434.3,4.10783]
[1730782067263,4.10724,2434.8,2434.6,0.46728221]
[1730782067457,0.7879,2434.7,2434.3,4.10783]
[1730782067756,4.89532,2434.7,2434.4,1.05151765]
[1730782067982,4.89532,2434.7,2434.5,0.46733523]
[1730782068262,4.89532,2434.7,2434.6,0.46733523]
[1730782068877,4.89532,2434.7,2434.2,4.10807]
[1730782069377,4.89532,2434.7,2434.3,5.15968146]
[1730782069572,4.89532,2434.7,2434.4,1.05173146]
[1730782069775,4.89532,2434.7,2434.5,0.46743026]
[1730782069999,4.89532,2434.7,2434.6,0.46743026]
[1730782070665,0.7879,2434.7,2434.6,0.46743026]
[1730782072504,0.7879,2434.7,2434.3,4.10787]
[1730782073090,0.7879,2434.7,2434.6,0.75953597]
[1730782073804,4.10687,2435.0,2434.6,0.46733099]
[1730782073805,0.7513,2435.0,2434.6,0.46733099]
[1730782074017,0.7513,2435.0,2434.7,4.10727]
[1730782074168,4.85815,2435.0,2434.6,0.46733099]
[1730782074988,10.161554,2435.0,2434.6,0.46733099]
[1730782075186,4.10708,2434.9,2434.6,0.46733099]
[1730782076031,4.10708,2434.9,2434.6,0.75940617]
[1730782076177,4.10708,2434.9,2434.6,0.29207518]
[1730782076795,4.10708,2434.9,2434.4,4.10767]
[1730782076998,6.054614,2435.0,2434.5,4.10757]
[1730782076999,10.161494,2435.0,2434.5,4.10757]
[1730782077175,4.10694,2434.9,2434.5,4.10757]
[1730782077618,4.10694,2434.9,2434.4,8.21535]
[1730782077777,4.10694,2434.9,2434.4,4.10767]
[1730782077977,4.10743,2434.7,2434.0,3.7666]
[1730782078174,0.7772,2434.8,2434.0,3.7666]
[1730782078175,4.8844,2434.8,2434.3,4.10787]
[1730782078377,0.7772,2434.8,2434.3,4.10787]
[1730782078584,0.7772,2434.8,2434.4,4.1077]
[1730782079014,0.7772,2434.8,2434.3,4.87447]
[1730782079193,4.10729,2434.7,2434.3,4.87447]
[1730782079500,0.8197,2434.5,2434.1,4.92067]
[1730782079867,4.92733,2434.5,2434.1,0.8124]
[1730782080068,4.1078,2434.4,2434.1,0.8124]
[1730782080498,0.8197,2434.5,2434.1,0.8124]
[1730782080705,4.92733,2434.5,2434.0,8.21672]
[1730782080891,4.92733,2434.5,2434.0,4.10836]
[1730782081691,4.92733,2434.5,2433.7,0.7728]
[1730782081692,0.7965,2434.4,2433.7,0.7728]
[1730782081898,4.10871,2433.9,2433.4,6.02309224]
[1730782082192,0.7965,2434.0,2433.3,0.7728]
[1730782082193,8.21785,2433.8,2433.3,0.7728]
[1730782082421,0.7965,2433.7,2433.1,5.75850055]
[1730782082632,4.10923,2433.6,2433.1,1.64861055]
[1730782082842,4.10923,2433.6,2433.1,5.75859055]
[1730782083618,0.66089117,2433.6,2433.1,0.87581055]
[1730782083788,4.1093,2433.5,2433.1,0.87581055]
[1730782083992,4.10919,2433.6,2433.1,0.87581055]